Workbook

Sheet Investments Form
A1: INITIAL INVESTMENTS AND START-UP EXPENSES FORM
A3: Grey Cells Are Input Cells
B5: Name of Offeror
B7: CONCID | C7: CC-ACAD01X-24
A10: Assets
A11: Existing Assets
A12: Assets necessary to the operation of the Concession, already owned by the Offeror, that will
A13: be allocated to the operation of the Draft Contract.
B16: Buses (see note on Investment Assumptions sheet)
B17: All Other Personal Property
B18: Inventory and Supplies
B19: Other (describe)
E21: Subtotal | G21: =SUM(G15:G19) -> 0
A22: Planned Asset Acquisition
A23: Assets necessary to Operate the Concession, that will be acquired by the Offeror
A24: if awarded the Draft Contract.
B27: Buses (see note on Investment Assumptions sheet)
B28: All Other Personal Property
B29: Inventory and Supplies
B30: Other (describe)
E32: Subtotal | G32: =SUM(G26:G30) -> 0
F34: Total | H34: =G21+G32 -> 0
A36: Other
D38: Start-Up Expenses
D39: Working Capital
D41: Other (describe)
F43: Total | H43: =SUM(G38:G41) -> 0
A46: Total Initial Investments and Start-up Expenses | H46: =+H43+H34 -> 0
A48: Notes
A49: 1) Formulas included in this form are provided by the NPS as guidance only. The Offeror is responsible for its financial projections and their accuracy.
A50: 2) Yellow cells represent categories that need to be explained on the "Investments Assumptions" worksheet.
A51: 3) All Offerors must include their estimate of the value of all property intended, whether planned for acquisition or currently owned, for use in the Draft Contract.
A52: 4) The items indicated above are the estimated planned expenditures for initial investment, defined as one-time costs in either the year prior to or the first year after the start of the Draft Contract.
A53: 5) Expenditures entered in this form should be in addition to that of typical annual capital investments and operating expenses of the first year of the Draft Contract.
A54: 6) Expenditures entered into this form should not be included in the proforma income statement.
A55: 7) Expenditures entered in this form should be included in the cash flow proforma as capital expenditures in either the year prior to or the first year after the start of the Draft Contract.
A57: Definitions
A58: Start-up Expenses
A59: One-time expenses incurred prior to the beginning of the contract, or during the first year of the contract, if needed, to implement your proposal.
A60: Working Capital
A61: Additional funds for working capital current assets such as pre-paid expenses, contingencies, and other necessary cash flow requirements. This should not be confused with Net Working Capital (current assets-current liabilities).

Sheet Investment Assumptions
A1: INITIAL INVESTMENTS AND START-UP EXPENSES ASSUMPTIONS
A3: Grey Cells Are Input Cells
B5: Name of Offeror
B7: CONCID | C7: CC-ACAD01X-24
A10: Assets
A11: Existing Assets
A12: Assets necessary to the operation of the Concession, already owned by the Offeror, that will be allocated to
A13: the operation of the Draft Contract.
A15: Buses | E15: Describe
A16: All Other Personal Property | E16: Describe
A17: Inventory and Supplies | E17: Describe
A18: Other (describe) | E18: Describe
A21: Planned Asset Acquisition
A22: Assets necessary to Operate the Concession, that will be acquired by the Offeror if awarded the Draft Contract.
A24: Buses (include investments for permanent fleet as well as any lease or other costs for temporary fleet) | E24: Describe
A25: All Other Personal Property | E25: Describe
A26: Inventory and Supplies | E26: Describe
A27: Other (describe) | E27: Describe
A29: Other
A31: Start-Up Expenses | E31: Describe
A32: Working Capital | E32: Describe
A34: Other (describe) | E34: Describe
A37: Notes
A38: In the description sections of this form, please provide an explanation of sufficient detail to allow
A39: a reviewer to fully understand how the estimates were determined.

Sheet Income Statement Form
A1: INCOME STATEMENT FORM
A3: Grey Cells Are Input Cells
A5: Name of Offeror
A7: CONCID | B7: CC-ACAD01X-24
A9: Prospective Income Statement
B11: 2021 | C11: =B11+1 -> 2022 | D11: 2023 | E11: 2024 | F11: 2025 | G11: 2026 | H11: 2027 | I11: 2028 | J11: 2029 | K11: 2030
A13: Revenue
A14: Interpretive Bus Tours
A17: Other (Specify)
A19: Total Gross Revenue | B19: =SUM(B14:B17) -> 0 | C19: 0 | D19: 0 | E19: 0 | F19: 0 | G19: 0 | H19: 0 | I19: 0 | J19: 0 | K19: 0
A20: Total Deductions
A21: Total Gross Receipts | B21: =B19-B20 -> 0 | C21: 0 | D21: 0 | E21: 0 | F21: 0 | G21: 0 | H21: 0 | I21: 0 | J21: 0 | K21: 0
A23: Cost of Sales
A26: Other (Specify)
A28: Total Cost of Sales | B28: =SUM(B24:B26) -> 0 | C28: 0 | D28: 0 | E28: 0 | F28: 0 | G28: 0 | H28: 0 | I28: 0 | J28: 0 | K28: 0
A30: Gross Profit | B30: =B21-B28 -> 0 | C30: 0 | D30: 0 | E30: 0 | F30: 0 | G30: 0 | H30: 0 | I30: 0 | J30: 0 | K30: 0
A32: Direct Expenses
A33: Interpretive Bus Tours
A34: Labor
A35: Repair & Maintenance
A36: Fuel
A37: Other Direct
A38: Interpretive Bus Tours Direct Expenses | B38: =SUM(B34:B37) -> 0 | C38: 0 | D38: 0 | E38: 0 | F38: 0 | G38: 0 | H38: 0 | I38: 0 | J38: 0 | K38: 0
A40: Authorized Services (Specify)
A41: Labor
A42: Other Departmental Expenses
A43: Total Authorized Services Expenses | B43: =SUM(B41:B42) -> 0 | C43: 0 | D43: 0 | E43: 0 | F43: 0 | G43: 0 | H43: 0 | I43: 0 | J43: 0 | K43: 0
A45: Other (Specify)
A46: Labor
A47: Other Departmental Expenses
A48: Total Other (Specify) Expenses | B48: =SUM(B46:B47) -> 0 | C48: 0 | D48: 0 | E48: 0 | F48: 0 | G48: 0 | H48: 0 | I48: 0 | J48: 0 | K48: 0
A50: Total Direct Expenses | B50: =SUM(B38,B43,B48) -> 0 | C50: 0 | D50: 0 | E50: 0 | F50: 0 | G50: 0 | H50: 0 | I50: 0 | J50: 0 | K50: 0
A52: Undistributed Expenses
A53: Other Salaries
A54: Office Supplies
A55: Telecommunications
A56: Management / Overhead
A57: Advertising
A58: Utilities
A59: Other Undistributed
A61: Total Undistributed Expenses | B61: =SUM(B53:B59) -> 0 | C61: 0 | D61: 0 | E61: 0 | F61: 0 | G61: 0 | H61: 0 | I61: 0 | J61: 0 | K61: 0
A63: Fixed Expenses
A64: Insurance
A65: Rent (staging and office space)
A66: Other (Specify)
A68: Total Fixed Expenses | B68: =SUM(B64:B66) -> 0 | C68: 0 | D68: 0 | E68: 0 | F68: 0 | G68: 0 | H68: 0 | I68: 0 | J68: 0 | K68: 0
A70: Total Operating Expenses | B70: =B28+B50+B61+B68 -> 0 | C70: 0 | D70: 0 | E70: 0 | F70: 0 | G70: 0 | H70: 0 | I70: 0 | J70: 0 | K70: 0
A72: EBITDA Before FF | B72: =B19-B70 -> 0 | C72: 0 | D72: 0 | E72: 0 | F72: 0 | G72: 0 | H72: 0 | I72: 0 | J72: 0 | K72: 0
A74: Franchise Fee
A76: EBITDA | B76: =B72-B74 -> 0 | C76: 0 | D76: 0 | E76: 0 | F76: 0 | G76: 0 | H76: 0 | I76: 0 | J76: 0 | K76: 0
A78: Interest Expense
A79: Depreciation
A80: Amortization
A82: Net Profit Before Taxes | B82: =B76-SUM(B78:B80) -> 0 | C82: 0 | D82: 0 | E82: 0 | F82: 0 | G82: 0 | H82: 0 | I82: 0 | J82: 0 | K82: 0
A84: Income Tax
A86: Net Income | B86: =B82-B84 -> 0 | C86: 0 | D86: 0 | E86: 0 | F86: 0 | G86: 0 | H86: 0 | I86: 0 | J86: 0 | K86: 0
A88: Notes
A89: 1) Formulas included in this form are provided by the NPS as guidance only. The Offeror is responsible for its financial projections and their accuracy.
A90: 2) Yellow cells represent categories that need to be explained on the "Income Statement Assumptions" worksheet.
A91: 3) Only projected receipts and expenses related to the services “required” by the contract and those you choose to operate under “authorized” services are to be itemized and included in your prospective statements. Please clearly identify, by service type, all revenues associated with authorized services.
A92: 4) The NPS views the treatment of Repair and Maintenance Reserve (component renewal) items as leasehold improvements. It is expected that the cost will be amortized over the shorter of the useful life
A93: of the asset or the contract term.
A95: Definitions
A96: Gross Receipts
A97: Gross Revenues less any revenues that are exempt from franchise fee.
A98: EBITDA FF
A99: Earnings Before Interest, Taxes, Depreciation, Amortization, and Franchise Fee.
A100: Franchise Fees
A101: A percentage of gross receipts due to the National Park Service.

Sheet Income Statement Assumptions
A1: INCOME STATEMENT ASSUMPTIONS
A3: Grey Cells Are Input Cells
A5: Name of Offeror
A7: CONCID | B7: ='Investment Assumptions'!C7 -> CC-ACAD01X-24
A10: Revenue
A11: See Operating Assumptions Tab
A15: Cost of Sales
A16: All Applicable Departments | B16: Describe
A18: Direct Expenses
A19: Labor | B19: Describe
A20: Repair and Maintenance Expense | B20: Describe
A21: Fuel | B21: Describe
A22: Other Direct | B22: Describe
A24: Undistributed Expenses
A25: Other Salaries | B25: Describe
A26: Office Supplies | B26: Describe
A27: Telecommunications | B27: Describe
A28: Management Fee / Overhead | B28: Describe
A29: Advertising | B29: Describe
A30: Utilities | B30: Describe
A31: Other Undistributed | B31: Describe
A33: Fixed Expenses
A34: Insurance | B34: Describe
A35: Rent | B35: Describe
A36: Interest Expense | B36: Describe
A37: Depreciation | B37: Describe
A38: Amortization | B38: Describe
A39: Other | B39: Describe
A40: Taxes
A41: Income Taxes | B41: Describe
A42: Franchise Fee
A43: Franchise Fee | B43: Describe
A45: Notes
A46: 1) In the description sections of this form, please provide an explanation of sufficient detail to allow a reviewer to fully understand how the estimates were determined.
A47: 2)If you are going to offer authorized services, please clearly identify which service(s) you will offer and use additional separate rows for each authorized service department. Labor costs should be supported by a footnote identifying Full Time Equivalents (FTE) occupied for each operating department identified.
A48: 3) Clearly describe the composition of each item classified under Undistributed and Fixed Expenses. If the expense item is allocated from or shared with a parent or related entity, please describe the allocation method. In particular, if you intend to assess a Management Fee, or other form of corporate overhead and profit, you must clearly describe what this fee is comprised of (Officer salaries, human resources, accounting, marketing, profit, etc.).
A50: Expense Assumption Description Example
A51: ***The following example does not reflect the above opportunity and is provided for the purpose of clarification only.***
A53: Direct expenses are expected to surpass historical direct expenses, as fuel and insurance prices increase. Studies by the Department of Commerce indicate that fuel prices will to rise at a rate of 10% annually over the next ten years, as opposed to the historical ten year rate of 4% annually. Additionally, insurance costs, according to a nationwide insurance broker survey, are expected to rise at 15% annually for the next 10 years, as opposed to the 10 year historical rate of 2% annually. Accordingly, direct expenses associated with the operation are forecast to increase from an annual average of 10% of Gross Revenue to an annual average of 20% of Gross Revenues over the life of the Draft Contract.

Sheet Operating Assumptions Form
A1: OPERATING ASSUMPTIONS
A3: Grey Cells Are Input Cells
A5: Name of Offeror
A7: CONCID | B7: CC-ACAD01X-24
B9: 2021 | C9: =B9+1 -> 2022 | D9: 2023 | E9: 2024 | F9: 2025 | G9: 2026 | H9: 2027 | I9: 2028 | J9: 2029 | K9: 2030
A11: Revenue Inflation | B11: - | M11: Additional Description
A12: Expense Inflation | B12: -
A16: Interpretive Bus Tours
A17: Number of Passengers | M17: Additional Description
A18: Transportation Revenue per Passenger
A19: Total Revenue | B19: =B18*B17 -> 0 | C19: 0 | D19: 0 | E19: 0 | F19: 0 | G19: 0 | H19: 0 | I19: 0 | J19: 0 | K19: 0
A21: Other
A22: Number of Passengers | M22: Additional Description
A23: Average Expenditure per Passenger
A24: Total Revenue | B24: =B23*B22 -> 0 | C24: 0 | D24: 0 | E24: 0 | F24: 0 | G24: 0 | H24: 0 | I24: 0 | J24: 0 | K24: 0
A27: Other (describe)
A28: Number of Customers | M28: Additional Description
A29: Average Revenue Per Customer
A30: Total Revenue | B30: =B29*B28 -> 0 | C30: 0 | D30: 0 | E30: 0 | F30: 0 | G30: 0 | H30: 0 | I30: 0 | J30: 0 | K30: 0
A33: Notes
A34: 1) Please note that revenue projections must be based on rates determined by the approval methods set forth in the draft Operating Plan.
A35: 2) The information on this form should fully explain and document your Gross Revenue build-up. State annual inflation rate assumptions, rate increase assumptions, ridership assumptions, utilization assumptions and any estimates of real growth you anticipate. If you have any additional descriptions of your assumptions, please use the "Additional Description" boxes to the right of each revenue department.
A36: 3) If you are going to offer authorized services, please clearly identify which service(s) you will offer and use additional rows to describe your revenue buildup for each authorized service.
A38: Examples
A39: Revenue Assumption Description Example
A40: ***The following example does not reflect the above opportunity and is provided for the purpose of clarification only.***
A41: Revenue inflation is expected increase at the same rate as the Consumer Price Index which is predicted to grow at a rate of 2.7% annually, based upon historical growth as reported by the Bureau of Labor Statistics. No real growth is expected to occur, keeping in line with historical revenues at the concession. Therefore, overall revenue growth is forecast to occur at an average annual rate of 2.7% over the life of the Draft Contract.

Sheet Cash Flow Statement Form
A1: CASH FLOW STATEMENT FORM
A3: Grey Cells Are Input Cells
A5: Name of Offeror
A7: CONCID | C7: CC-ACAD01X-24
A9: Prospective Cash Flow Statement
A11: Operating Activities | B11: Year Zero | C11: 2021 | D11: =+C11+1 -> 2022 | E11: =D11+1 -> 2023 | F11: 2024 | G11: 2025 | H11: 2026 | I11: 2027 | J11: 2028 | K11: 2029 | L11: 2030
A12: Net Income
A13: Depreciation
A14: Amortization
A15: Change in working capital
A16: Other (describe)
A18: Net Cash Provided (Used) by Operating Activities | B18: =B12+B13+B14+B15+B16 -> 0 | C18: 0 | D18: 0 | E18: 0 | F18: 0 | G18: 0 | H18: 0 | I18: 0 | J18: 0 | K18: 0 | L18: 0
A20: Financing Activities
A21: Dividend
A22: Sale/Repurchase of Stock
A23: Borrowings/ Repayment of Debt
A24: Other (describe)
A26: Net Cash Provided (Used) by Financing Activities | B26: =SUM(B21:B24) -> 0 | C26: 0 | D26: 0 | E26: 0 | F26: 0 | G26: 0 | H26: 0 | I26: 0 | J26: 0 | K26: 0 | L26: 0
A28: Investment Activities
A29: Personal Property Replacement (exlcuding buses)
A30: Investment in Bus Fleet
A32: Inventory and Supplies
A33: Start-Up Expenses
A34: Working Capital
A36: Other (describe)
A38: Net Cash Provided (Used) by Investing Activities | B38: =SUM(B29:B36) -> 0 | C38: 0 | D38: 0 | E38: 0 | F38: 0 | G38: 0 | H38: 0 | I38: 0 | J38: 0 | K38: 0 | L38: 0
A40: Total Cash Flow | B40: =B18+B26+B38 -> 0 | C40: 0 | D40: 0 | E40: 0 | F40: 0 | G40: 0 | H40: 0 | I40: 0 | J40: 0 | K40: 0 | L40: 0
A42: Notes
A43: 1) Formulas included in this form are provided by the NPS as guidance only. The Offeror is responsible for its financial projections and their accuracy.
A44: 2) Yellow cells represent categories that need to be explained on the "Cash Flow Statement Assumptions" worksheet.
A45: 3) Investment activities should include entries for one time acquisition and disposal at the beginning and end of the Draft Contract term as well as cyclical or annual capital investments such as replacement.
A46: 4) Estimates for capital expenditures in the Cash Flow Statements made prior to or during the first year after the start of the Draft Contract should be reflective of estimates provide in the Initial Investment and Start-up Costs form.
A47: 5) Clearly delineate between personal and real property and define your rationale and assumptions for each category.
A48: 6) Since Repair and Maintenance Reserve (component renewal) activities are considered capital expenditures they should be included on the cash flow statement.

Sheet Cash Flow Statement Assumptions
A1: CASH FLOW STATEMENT ASSUMPTIONS
A3: Grey Cells Are Input Cells
A5: Name of Offeror
A7: CONCID | B7: ='Investment Assumptions'!C7 -> CC-ACAD01X-24
A9: Prospective Cash Flow Statement
A11: Investment Activities
A12: Personal Property Replacement (exlcuding bus improvements/upgrades/replacements) | B12: Describe - Personal property replacement during the Draft Contract
A13: Bus Fleet Improvements/Upgrades/Replacements | B13: Describe - Bus fleet improvements/upgrades/replacements during the Draft Contract
A14: Other | B14: Describe - Other investments during the Draft Contract
A17: Notes
A18: In the description sections of this form, please provide an explanation of sufficient detail to allow a reviewer
A19: to fully understand how the estimates were determined.

Sheet Recapture of Investment Form
A1: RECAPTURE OF INVESTMENT FORM
A3: Grey Cells Are Input Cells
B5: Name of Offeror
B7: CONCID | C7: CC-ACAD01X-24
A10: Assets and Other
D15: Buses
D16: All Other Personal Property
D17: Inventory and Supplies
D18: Working Capital
D19: Other (describe)
D21: Total of Recapture of Investments at the End of the Contract Term | E21: Total | G21: =SUM(G15:G19) -> 0
A24: Notes
A25: 1) The value of ending LSI is only a best guess estimate neither offeror nor the NPS is bound by the number presented above.
A26: 2) Reference the Draft Contract and exhibits for guidance on Leasehold Surrender Interest and Personal Property.
A27: 3) Formulas included in this form are provided by the NPS as guidance only. The Offeror is responsible for its financial projections and their accuracy.
A28: 4) Yellow cells represent categories that need to be explained on the "Recapture of Investment Assumptions" worksheet.
A29: 5) All Offerors must include their estimate of the ending value of all property and other assets at the end of the Draft Contract.
A30: 6) Recapture amounts entered into this form should not be included in the proforma income statement.
A31: 7) Recapture amounts entered in this form should be included in the cash flow proforma as capital recapture in the final year of the Draft Contract.

Sheet Recapture of Inv Assumptions
A1: RECAPTURE OF INVESTMENT ASSUMPTIONS
A3: Grey Cells Are Input Cells
B5: Name of Offeror
B7: CONCID | C7: CC-ACAD01X-24
A10: Assets and Other
A11: Please describe the method used to determine the values of the planned recoup of investments at the end of the Draft Contract.
A14: Buses | E14: Describe
A15: All Other Personal Property | E15: Describe
A16: Inventory and Supplies | E16: Describe
A17: Working Capital | E17: Describe
A18: Other (describe) | E18: Describe
A21: Notes
A22: In the description sections of this form, please provide an explanation of sufficient detail to allow
A23: a reviewer to fully understand how the estimates were determined.

Sheet CUA2018 (hidden)
A1: 2018 Statistics
B3: May 2018 | C3: June 2018 | D3: July 2018 | E3: August 2018 | F3: September 2018 | G3: October 2018 | H3: 2018 Total
A4: Commercial Vehicles
A5: 1-6 | B5: 33 | C5: 110 | D5: 141 | E5: 144 | F5: 284 | G5: 317 | H5: =SUM(B5+C5+D5+E5+F5+G5) -> 1029 | J5: 1-6 passenger commercial vehicles not counted as "buses". Rationale: can fit into parking spaces. (Up to 15-passenger van?)
A6: 7-15 | B6: 66 | C6: 172 | D6: 178 | E6: 169 | F6: 396 | G6: 324 | H6: =SUM(B6+C6+D6+E6+F6+G6) -> 1305
A7: 16-25 | B7: 2 | C7: 12 | D7: 13 | E7: 9 | F7: 28 | G7: 20 | H7: 84
A8: 26+ | B8: 52 | C8: 162 | D8: 169 | E8: 161 | F8: 583 | G8: 574 | H8: 1701
A9: Total | B9: =SUM(B5:B8) -> 153 | C9: =SUM(C5:C8) -> 456 | D9: 501 | E9: 483 | F9: 1291 | G9: 1235 | H9: 4119 | K9: =G8*45 -> 25830
A10: Concessions | K10: =G7*18 -> 360
A11: Oli's Trolley | K11: =G6*10 -> 3240
A12: People | B12: 1725 | C12: 5584 | D12: 7080 | E12: 7734 | F12: 8470 | G12: 7245 | H12: =SUM(B12+C12+D12+E12+F12+G12) -> 37838 | K12: =SUM(K9:K11) -> 29430
A13: Buses | B13: 122 | C13: 284 | D13: 363 | E13: 374 | F13: 339 | G13: 280 | H13: 1762
A14: National Park Tours
A15: People | B15: 782 | C15: 3022 | D15: 3298 | E15: 3112 | F15: 4066 | G15: 3973 | H15: =SUM(B15+C15+D15+E15+F15+G15) -> 18253
A16: Buses | B16: 41 | C16: 108 | D16: 106 | E16: 104 | F16: 120 | G16: 113 | H16: 592
A17: Concessions Total
A18: People | B18: =B12+B15 -> 2507 | C18: =C12+C15 -> 8606 | D18: 10378 | E18: 10846 | F18: 12536 | G18: 11218 | H18: 56091 | K18: =SUM(H6:H8) -> 3090
A19: Buses | B19: =B13+B16 -> 163 | C19: 392 | D19: 469 | E19: 478 | F19: 459 | G19: 393 | H19: 2354
A21: Fee Waiver
A22: # Individuals | B22: 584 | C22: 1425 | D22: 288 | E22: 380 | F22: 371 | G22: 213 | H22: =SUM(B22+C22+D22+E22+F22+G22) -> 3261
K23: 1435 | L23: 1261 | M23: 1390 | N23: 1609 | O23: 1701 | P23: =(O23/K23)^0.25-1 -> 0.0434294811
K24: 11 | L24: 14 | M24: 48 | N24: 58 | O24: 84 | P24: =(O24/K24)^0.25-1 -> 0.6623468708
K25: 281 | L25: 694 | M25: 782 | N25: 1244 | O25: 1305 | P25: 0.4679999742
K26: 1727 | L26: 1969 | M26: 2220 | N26: 2911 | O26: 3090 | P26: 0.1565556524
H30: =H6*10 -> 13050
H31: =H7*18 -> 1512
H32: =H8*45 -> 76545
H33: =SUM(H30:H32) -> 91107
